bitfinex-derivatives/quotes_SOLF0:USTF0_20240920
["timestamp","ask_amount","ask_price","bid_price","bid_amount"]
[1726857800988,1.3708,145.75,145.65,26.37]
[1726857801191,3.4311,145.72,145.69,3.4316]
[1726857801901,3.4309,145.73,145.65,26.37]
[1726857802090,1.3708,145.75,145.65,26.37]
[1726857802793,1.3708,145.75,145.64,1.3732]
[1726857803003,3.4317,145.7,145.63,29.75734487]
[1726857803202,3.4317,145.7,145.63,26.37]
[1726857803802,3.4317,145.7,145.63,29.75001098]
[1726857803997,1.3708,145.75,145.65,26.37]
[1726857804397,1.3708,145.75,145.68,26.37]
[1726857804601,3.4307,145.74,145.68,26.37]
[1726857804896,3.4307,145.74,145.71,3.4312]
[1726857805099,1.3708,145.75,145.68,26.37]
[1726857805495,1.3708,145.75,145.71,3.4312]
[1726857805895,3.4308,145.73,145.7,3.4315]
[1726857806097,1.364,145.78,145.68,26.37]
[1726857806709,3.4303,145.76,145.72,3.4308]
[1726857807202,1.364,145.78,145.73,3.4308]
[1726857807600,3.4302,145.76,145.73,3.4308]
[1726857807796,1.364,145.78,145.72,3.4309]
[1726857808299,3.4304,145.75,145.72,3.4309]
[1726857808497,27.734,145.78,145.68,26.37]
[1726857808709,3.4307,145.74,145.68,26.37]
[1726857809792,1.3036,145.79,145.68,26.37]
[1726857810106,1.3036,145.79,145.71,26.37]
[1726857810298,3.4301,145.76,145.68,26.37]
[1726857810499,1.3036,145.79,145.7,26.37]
[1726857811000,1.3036,145.79,145.74,3.4305]
[1726857811001,3.4301,145.76,145.74,3.4305]
[1726857811206,1.3036,145.79,145.67,2.6827]
[1726857811411,3.4307,145.74,145.69,26.37]
[1726857811799,1.3036,145.79,145.69,26.37]
[1726857812992,3.4305,145.75,145.72,3.4309]
[1726857813193,1.3036,145.79,145.69,26.37]
[1726857813599,3.4307,145.74,145.71,3.4311]
[1726857815305,3.4305,145.75,145.72,3.4308]
[1726857816097,1.3036,145.79,145.71,26.37]
[1726857816705,3.4299,145.77,145.71,26.37]
[1726857817203,1.3036,145.79,145.71,26.37]
[1726857817412,1.3036,145.79,145.69,26.37]
[1726857817605,1.3036,145.79,145.71,26.37]
[1726857818510,1.3036,145.79,145.74,3.4305]
[1726857818708,1.3036,145.79,145.71,26.37]
[1726857818910,1.3036,145.79,145.73,3.4307]
[1726857819909,6.8532,145.91,145.74,26.37]
[1726857820105,5.27678393,145.86,145.74,26.37]
[1726857820415,7.45806015,145.86,145.79,3.4293]
[1726857820812,3.4288,145.82,145.79,3.4293]
[1726857821217,7.45806015,145.86,145.78,3.4295]
[1726857821218,3.4291,145.81,145.78,3.4295]
[1726857822017,7.45806015,145.86,145.74,29.0921]
[1726857822315,33.82806015,145.86,145.74,29.0921]
[1726857822516,3.4293,145.8,145.74,29.0921]
[1726857823214,3.4293,145.8,145.76,3.4298]
[1726857823411,3.4293,145.8,145.74,29.0921]
[1726857824010,3.4293,145.8,145.77,3.4297]
[1726857825016,3.4293,145.8,145.78,3.4295]
[1726857825210,3.4293,145.8,145.74,29.0921]
[1726857825618,3.4293,145.8,145.77,3.4297]
[1726857825814,3.429,145.81,145.74,29.0921]
[1726857826015,7.45806015,145.86,145.78,16.46]
[1726857826319,3.4286,145.83,145.8,3.4291]
[1726857826621,6.8523,145.93,145.82,16.46]
[1726857826808,3.4277,145.86,145.82,16.46]
[1726857827016,3.39473492,145.89,145.82,16.46]
[1726857827214,17.8489,145.92,145.84,3.428]
[1726857827410,17.8489,145.92,145.82,16.46]
[1726857827411,1.17729176,145.91,145.82,16.46]
[1726857827720,1.17729176,145.91,145.82,19.8886]
[1726857827920,3.4281,145.85,145.82,19.8886]
[1726857828516,3.4279,145.86,145.82,16.46]
[1726857828723,16.46,145.91,145.82,16.46]
[1726857828923,1.17712671,145.9,145.82,16.46]
[1726857829220,16.46,145.89,145.8,16.46]
[1726857829419,16.46,145.87,145.78,16.46]
[1726857830025,16.46,145.87,145.74,139.9421]
[1726857830026,3.4288,145.82,145.76,26.34]
[1726857830425,3.4288,145.82,145.79,3.4292]
[1726857832813,29.0283,145.88,145.79,26.34]
[1726857832814,2.6883,145.88,145.79,26.34]
[1726857833412,3.4282,145.85,145.81,3.4287]
[1726857833611,3.4282,145.85,145.79,26.34]
[1726857833823,3.4282,145.85,145.81,3.4287]
[1726857834422,3.4282,145.84,145.81,3.4287]
[1726857834622,3.4282,145.84,145.82,3.4287]
[1726857835614,2.6883,145.88,145.74,2.7221]
[1726857835615,3.4285,145.83,145.74,2.7221]
[1726857835818,29.0283,145.88,145.76,26.34]
[1726857836219,3.4287,145.82,145.76,26.34]
[1726857836723,3.4289,145.81,145.76,26.34]
[1726857837530,3.4288,145.82,145.76,26.34]
[1726857837825,36.67207707,145.9,145.76,26.34]
[1726857838027,36.67207707,145.9,145.74,2.7221]
[1726857838028,3.4278,145.86,145.78,26.34]
[1726857838230,2.7528,145.89,145.82,3.4285]
[1726857838616,3.4282,145.84,145.78,26.34]
[1726857838817,2.7528,145.89,145.81,3.4288]
[1726857839317,3.4283,145.84,145.81,3.4288]
[1726857839830,3.4283,145.84,145.82,3.4286]
[1726857840221,2.7528,145.89,145.82,3.4285]
[1726857840418,2.7528,145.89,145.78,26.34]
[1726857841223,2.7528,145.89,145.81,3.4288]
[1726857841521,2.7528,145.89,145.78,26.34]
[1726857841723,3.4283,145.84,145.81,3.4287]
[1726857841924,2.7528,145.89,145.81,3.4287]
[1726857842425,3.4286,145.83,145.8,3.429]
[1726857842727,3.4286,145.83,145.78,26.34]
[1726857843725,3.4286,145.83,145.8,3.429]
[1726857843928,23.4128,145.89,145.76,26.34]
[1726857844126,26.34,145.87,145.76,26.34]
[1726857844327,1.3113,145.86,145.79,3.4292]
[1726857844817,1.3891,145.89,145.78,26.34]
[1726857845121,1.3891,145.89,145.76,6.8598]
[1726857845122,1.3891,145.89,145.8,26.34]
[1726857845324,1.3891,145.89,145.83,3.4283]
[1726857845521,1.3891,145.89,145.8,26.34]
[1726857845722,1.3891,145.89,145.81,3.44170096]
[1726857846129,49.6063,145.94,145.82,26.34]
[1726857846320,2.50822355,145.93,145.85,26.34]
[1726857846526,1.3304,145.93,145.85,26.34]
[1726857846928,3.4265,145.92,145.88,3.4271]
[1726857847234,29.73543021,145.98,145.87,26.34]
[1726857847532,1.3625,145.97,145.84,3.47870808]
[1726857847730,1.3625,145.97,145.84,29.81870808]
[1726857847931,26.34,145.96,145.84,29.81870808]
[1726857848335,26.34,145.96,145.84,26.34]
[1726857848535,26.34,145.96,145.87,3.4274]
[1726857848731,26.34,145.96,145.84,29.69699101]
[1726857849029,26.34,145.96,145.84,26.34]
[1726857849231,26.34,145.93,145.82,27.7064]
[1726857849432,2.6789,145.92,145.82,27.7064]
[1726857849736,2.6789,145.92,145.84,3.4282]
[1726857849737,3.4276,145.87,145.84,3.4282]
[1726857850232,3.43297908,145.9,145.85,3.4279]
[1726857850233,3.4274,145.88,145.85,3.4279]
[1726857850438,3.43297908,145.9,145.83,16.45]
[1726857850641,17.8125,145.91,145.82,1.3664]
[1726857850937,1.3625,145.91,145.81,16.45]
[1726857851144,16.45,145.89,145.81,16.45]
[1726857851334,3.4276,145.87,145.83,3.4282]
[1726857851837,3.4275,145.88,145.84,3.4282]
[1726857852040,3.40041138,145.9,145.84,3.4282]
[1726857852232,17.8125,145.91,145.84,3.4282]
[1726857852833,1.3625,145.91,145.84,3.4282]
[1726857853245,3.4276,145.87,145.84,3.4282]
[1726857853932,20.66,145.96,145.77,1.3921]
[1726857853933,20.66,146.01,145.86,16.45]
[1726857854134,20.66,146.01,145.8,16.45]
[1726857854135,1.3148,145.95,145.88,16.45]
[1726857854644,1.3148,145.95,145.89,3.4269]
[1726857854843,4.67944618,145.95,145.89,3.4269]
[1726857855044,3.4263,145.93,145.9,3.4268]
[1726857855438,1.3148,145.95,145.88,16.45]
[1726857855642,1.3148,145.95,145.92,16.45]
[1726857855847,1.3714,145.96,145.92,16.45]
[1726857856053,1.3148,145.99,145.92,16.45]
[1726857856351,3.4253,145.97,145.93,3.4261]
[1726857856544,4.78851667,145.99,145.92,16.45]
[1726857856840,3.4255,145.96,145.92,19.8762]
[1726857857049,4.78851667,145.99,145.9,16.45]
[1726857857247,16.45,145.98,145.9,16.45]
[1726857857544,16.45,145.96,145.83,137.12]
[1726857857846,16.45,145.94,145.87,16.45]
[1726857858050,16.45,145.96,145.87,16.45]
[1726857858549,3.4262,145.93,145.89,3.427]
[1726857859238,16.45,145.96,145.89,3.427]
[1726857859437,20.66,145.98,145.88,3.4272]
[1726857859647,16.45,145.96,145.87,16.45]
[1726857859848,16.45,145.94,145.87,16.45]
[1726857860353,1.3878,145.93,145.87,16.45]
[1726857860544,2.8051,145.93,145.87,16.45]
[1726857860741,3.4267,145.91,145.87,16.45]
[1726857860940,16.45,145.94,145.87,16.45]
[1726857861143,16.45,145.96,145.87,16.45]
[1726857861447,3.4262,145.93,145.88,3.427]
[1726857861648,3.4262,145.93,145.87,16.45]
[1726857861839,2.8051,145.97,145.89,16.45]
[1726857862446,2.8051,145.97,145.91,16.45]
[1726857862646,3.4255,145.96,145.92,3.4262]
[1726857862950,2.8051,145.97,145.91,16.45]
[1726857863147,3.4254,145.96,145.93,3.426]
[1726857863356,3.4254,145.96,145.91,16.45]
[1726857863542,2.8051,145.97,145.91,16.45]
[1726857863744,3.4261,145.94,145.9,3.4266]
[1726857864158,20.66,146.06,145.87,26.34]
[1726857864349,2.7293,146.03,145.92,26.34]
[1726857864649,1.17748406,146.02,145.92,26.34]
[1726857864855,1.17739699,146.01,145.95,3.4255]
[1726857865156,2.7293,146.03,145.92,26.34]
[1726857865353,1.17740775,146.02,145.92,26.34]
[1726857865557,26.34,146.02,145.9,26.34]
[1726857865847,26.34,145.99,145.87,26.34]
[1726857866050,1.3117,145.98,145.87,26.34]
[1726857866246,1.3117,145.98,145.91,3.4264]
[1726857866450,1.3444,145.97,145.91,3.4264]
[1726857867955,1.3444,145.97,145.87,26.34]
[1726857867956,1.3444,145.97,145.9,3.4267]
[1726857868254,49.7767,145.97,145.85,26.34]
[1726857868942,29.1167,145.97,145.85,26.34]
[1726857869562,3.4261,145.93,145.9,3.4266]
[1726857869948,3.4259,145.94,145.91,3.4265]
[1726857873062,3.4257,145.95,145.92,3.4263]
[1726857873854,1.3444,145.97,145.9,26.34]
[1726857874065,26.34,146.02,145.92,26.34]
[1726857874254,2.7225,146.04,145.92,26.34]
[1726857874562,2.7225,146.04,145.9,26.34]
[1726857874563,27.51738727,146.03,145.9,26.34]
[1726857874862,47.0,146.03,145.9,26.34]
[1726857875061,3.4252,145.97,145.9,26.34]
[1726857875453,47.0,146.03,145.94,3.4257]
[1726857876255,3.4253,145.97,145.94,3.4257]
[1726857878067,24.16509727,145.99,145.84,1.1823]
[1726857878269,30.4149,145.96,145.84,27.5223]
[1726857878560,30.4149,145.96,145.88,3.4271]
[1726857878965,30.4149,145.96,145.84,27.5223]
[1726857879166,3.4267,145.91,145.88,3.4272]
[1726857879362,30.4149,145.96,145.84,27.5223]
[1726857880366,3.4268,145.9,145.84,26.34]
[1726857880668,30.4149,145.96,145.84,26.34]
[1726857881471,3.4267,145.91,145.88,3.4273]
[1726857881766,30.4149,145.96,145.82,3.48960919]
[1726857881967,3.427,145.9,145.86,3.4276]
[1726857882171,3.427,145.9,145.83,26.34]
[1726857882469,3.4267,145.91,145.87,3.4273]
[1726857882969,51.0749,145.96,145.87,3.4273]
[1726857883166,51.0749,145.96,145.88,3.4272]
[1726857883167,3.4267,145.91,145.88,3.4272]
[1726857883368,51.0749,145.96,145.85,26.34]
[1726857883369,4.0749,145.96,145.85,26.34]
[1726857884059,4.0749,145.96,145.88,16.46]
[1726857884673,3.4261,145.93,145.9,3.4266]
[1726857886168,16.46,145.92,145.8,1.1809]
[1726857886366,16.46,145.92,145.82,16.46]
[1726857886572,3.4272,145.89,145.85,3.4278]
[1726857886763,16.46,145.92,145.85,3.4278]
[1726857886963,3.50252879,145.91,145.85,3.4278]
[1726857887266,3.50252879,145.91,145.82,16.46]
[1726857887666,3.4274,145.88,145.82,16.46]
[1726857887864,3.50252879,145.91,145.85,3.4278]
[1726857888068,3.50252879,145.91,145.82,16.46]
[1726857888373,6.8514,145.95,145.86,3.4276]
[1726857888374,3.4272,145.89,145.86,3.4276]
[1726857888766,3.4272,145.89,145.87,3.4274]
[1726857888967,3.4269,145.9,145.84,16.46]
[1726857889475,3.4269,145.9,145.87,3.4274]
[1726857889669,16.46,145.93,145.81,3.40005754]
[1726857889871,16.46,145.93,145.85,3.4278]
[1726857890372,3.4274,145.88,145.85,3.4278]
[1726857891466,3.4275,145.87,145.84,3.4281]
[1726857893379,16.46,145.9,145.79,16.46]
[1726857893380,16.46,145.86,145.79,16.46]
[1726857893774,3.4284,145.84,145.81,3.4288]
[1726857894481,3.4284,145.84,145.82,3.4287]
[1726857896081,16.46,145.86,145.81,3.4288]
[1726857896670,3.4284,145.84,145.81,3.4288]
[1726857897277,16.46,145.85,145.73,1.1812]
[1726857897475,20.66,145.87,145.73,1.1812]
[1726857897675,16.46,145.8,145.71,19.93174598]
[1726857898073,3.43,145.77,145.74,3.4304]
[1726857898275,19.93272727,145.8,145.74,3.4304]
[1726857898276,3.47272727,145.8,145.74,3.4304]
[1726857898478,16.46,145.78,145.7,137.12]
[1726857898677,16.46,145.78,145.7,140.5309777]
[1726857898877,3.4305,145.75,145.72,3.4309]
[1726857899382,3.4305,145.75,145.71,3.4312]
[1726857899583,16.46,145.76,145.67,16.46]
[1726857899779,1.356,145.78,145.67,16.46]
[1726857899780,16.46,145.74,145.67,16.46]
[1726857900080,1.3813,145.77,145.66,1.1823]
[1726857900081,3.4313,145.71,145.66,1.1823]
[1726857900281,3.4313,145.71,145.64,26.34]
[1726857900282,3.4313,145.71,145.65,3.41269296]
[1726857900487,27.6388,145.76,145.64,26.34]
[1726857900682,1.2988,145.76,145.66,26.34]
[1726857901181,1.2988,145.76,145.63,1.1823]
[1726857901182,27.6388,145.76,145.63,1.1823]
[1726857901487,26.34,145.74,145.63,1.1823]
[1726857901685,3.4321,145.68,145.64,3.4329]
[1726857902295,3.4326,145.66,145.59,26.34]
[1726857903177,1.412,145.7,145.63,3.433]
[1726857903178,3.4323,145.67,145.63,3.433]
[1726857903483,3.4323,145.67,145.59,26.34]
[1726857903986,1.412,145.7,145.59,26.34]
[1726857904379,1.412,145.7,145.62,26.34]
[1726857904591,48.2988,145.76,145.64,26.34]
[1726857904784,26.34,145.73,145.62,26.34]
[1726857905089,3.4321,145.68,145.59,26.34]
[1726857905879,3.4318,145.69,145.59,26.34]
[1726857906186,26.34,145.73,145.62,26.34]
[1726857906187,3.43769258,145.71,145.62,26.34]
[1726857906388,26.34,145.73,145.62,26.34]
[1726857906583,26.34,145.71,145.59,26.34]
[1726857906783,26.34,145.71,145.61,26.34]
[1726857906784,3.4317,145.69,145.61,26.34]
[1726857906983,26.34,145.73,145.61,26.34]
[1726857907185,1.412,145.75,145.64,26.34]
[1726857907388,1.412,145.75,145.65,3.44558743]
[1726857907585,1.412,145.75,145.66,26.34]
[1726857907783,27.752,145.75,145.63,26.34]
[1726857908288,26.34,145.71,145.63,3.433]
[1726857908494,3.37830024,145.7,145.59,26.34]
[1726857908683,26.34,145.73,145.61,26.34]
[1726857908884,22.072,145.75,145.63,26.34]
[1726857908885,27.752,145.75,145.63,26.34]
[1726857909085,26.34,145.73,145.61,26.34]
[1726857909284,26.34,145.73,145.64,3.4328]
[1726857909886,26.34,145.73,145.65,3.4326]
[1726857910195,26.34,145.73,145.61,26.34]
[1726857910388,3.4316,145.7,145.61,26.34]
[1726857910789,26.34,145.73,145.61,26.34]
[1726857911494,26.34,145.7,145.59,26.34]
[1726857911691,2.6703,145.69,145.57,27.5223]
[1726857911996,26.34,145.68,145.57,27.5223]
[1726857912191,3.4331,145.64,145.61,3.4336]
[1726857912392,3.4331,145.64,145.57,27.5223]
[1726857912393,26.34,145.68,145.57,27.5223]
[1726857912697,4.0399,145.69,145.57,27.5223]
[1726857913089,3.4326,145.66,145.63,3.4329]
[1726857913288,4.0399,145.69,145.57,27.5223]
[1726857913696,3.4329,145.64,145.57,27.5223]
[1726857914097,4.0399,145.69,145.57,27.5223]
[1726857914297,4.0399,145.69,145.6,3.4336]
[1726857914485,26.34,145.68,145.6,3.4336]
[1726857914885,26.34,145.68,145.57,27.5223]
[1726857915091,26.34,145.68,145.57,1.1823]
[1726857915389,3.4337,145.61,145.58,3.4342]
[1726857915790,3.4336,145.62,145.59,3.4341]
[1726857915997,26.34,145.65,145.56,113.70192964]
[1726857916499,26.34,145.65,145.57,3.4344]
[1726857916700,26.34,145.65,145.56,113.70192964]
[1726857916896,3.434,145.6,145.56,117.13652964]
[1726857917192,26.34,145.65,145.54,3.37007911]
[1726857917387,26.34,145.65,145.52,27.5266]
[1726857917590,26.34,145.68,145.55,26.34]
[1726857919001,3.4328,145.65,145.6,3.4336]
[1726857919604,3.4328,145.65,145.61,3.4336]
[1726857920201,3.4328,145.65,145.6,3.4337]
[1726857920903,29.7726,145.66,145.61,3.4336]
[1726857921094,26.34,145.66,145.53,26.34]
[1726857921603,3.4329,145.64,145.59,3.4339]
[1726857921906,16.49,145.61,145.52,21.07370495]
[1726857922202,16.49,145.61,145.57,3.4344]
[1726857922899,19.9237,145.61,145.56,3.4347]
[1726857923105,19.9237,145.61,145.52,16.49]
[1726857923407,19.9237,145.61,145.57,3.4344]
[1726857923408,16.49,145.61,145.57,3.4344]
[1726857924091,16.49,145.61,145.52,16.49]
[1726857924296,1.4016,145.62,145.54,16.49]
[1726857924815,16.49,145.6,145.52,23.3614]
[1726857926001,17.8916,145.62,145.54,16.49]
[1726857927296,17.8916,145.62,145.58,3.4341]
[1726857928101,17.8916,145.62,145.59,3.434]
[1726857930905,17.8916,145.62,145.6,3.4338]
[1726857931408,17.8916,145.62,145.54,16.49]
[1726857931607,17.8916,145.62,145.59,3.4339]
[1726857931804,16.49,145.6,145.52,16.49]
[1726857932199,16.49,145.58,145.51,3.49532902]
[1726857932499,4.78382683,145.62,145.49,1.1876]
[1726857932500,16.49,145.57,145.54,3.4352]
[1726857933311,16.49,145.6,145.51,16.49]
[1726857933507,21.3167572,145.62,145.53,16.49]
[1726857934100,24.7502572,145.62,145.53,16.49]
[1726857934304,16.49,145.6,145.52,16.49]
[1726857934809,16.49,145.58,145.5,26.87802616]
[1726857935213,19.9244,145.58,145.5,20.00582616]
[1726857935404,19.9244,145.58,145.5,16.49]
[1726857935604,1.3297,145.57,145.5,19.86902452]
[1726857935798,1.3297,145.57,145.5,16.49]
[1726857936405,1.3297,145.57,145.55,3.4349]
[1726857936808,1.3297,145.57,145.5,19.9710341]
[1726857937914,1.3297,145.57,145.56,3.4348]
[1726857939100,1.3297,145.57,145.55,3.4349]
[1726857939413,1.3297,145.57,145.5,19.9710341]
[1726857939611,1.3297,145.57,145.54,3.4351]
[1726857942213,16.49,145.56,145.54,3.4351]
[1726857943206,16.49,145.56,145.55,3.435]
[1726857944411,16.49,145.56,145.54,3.4351]
[1726857944812,16.49,145.56,145.53,3.4353]
[1726857945113,16.49,145.55,145.53,3.4353]
[1726857947321,19.9252,145.55,145.46,23.3641]
[1726857947815,16.49,145.55,145.47,6.8738]
[1726857948004,1.37,145.56,145.48,16.49]
[1726857948209,1.37,145.56,145.49,3.48543155]
[1726857948405,1.37,145.56,145.55,3.435]
[1726857948616,1.3297,145.57,145.5,16.49]
[1726857949117,1.3297,145.57,145.5,19.94794392]
[1726857949317,1.3297,145.57,145.56,3.4348]
[1726857951015,1.3297,145.57,145.55,3.435]
[1726857952419,1.3297,145.57,145.5,16.49]
[1726857953514,1.3297,145.57,145.54,3.4351]
[1726857954115,1.3122,145.61,145.55,16.49]
[1726857954310,19.9226,145.66,145.57,16.49]
[1726857954515,17.787,145.66,145.62,3.4332]
[1726857955613,21.2195,145.66,145.62,3.4332]
[1726857956322,21.2195,145.66,145.61,3.4335]
[1726857956517,21.2195,145.66,145.57,19.95113945]
[1726857957215,21.2195,145.66,145.57,16.49]
[1726857957216,17.787,145.66,145.57,16.49]
[1726857958322,3.433,145.64,145.56,3.36263736]
[1726857958522,16.49,145.63,145.56,3.36263736]
[1726857958823,16.49,145.63,145.59,3.4339]
[1726857958824,19.9232,145.63,145.59,3.4339]
[1726857959021,16.49,145.63,145.55,16.49]
[1726857959521,3.433,145.64,145.55,16.49]
[1726857959720,3.433,145.64,145.57,16.49]
[1726857960323,3.433,145.64,145.6,3.4336]
[1726857960509,1.297,145.66,145.57,16.49]
[1726857960924,20.66,145.74,145.59,16.49]
[1726857961122,2.7262,145.69,145.61,16.49]
[1726857961718,6.1581,145.69,145.61,16.49]
[1726857962124,3.432,145.68,145.64,3.4327]
[1726857962426,19.2162,145.69,145.58,16.49]
[1726857962427,16.49,145.67,145.58,16.49]
[1726857962720,19.9228,145.65,145.57,17.6772]
[1726857962920,16.49,145.65,145.57,17.6772]
[1726857963114,16.49,145.65,145.54,3.46222527]
[1726857963115,16.49,145.64,145.59,3.4339]
[1726857963310,19.923,145.64,145.55,16.49]
[1726857963716,16.49,145.64,145.55,16.49]
[1726857963911,19.923,145.64,145.55,16.49]
[1726857964117,16.49,145.64,145.59,3.4339]
[1726857965018,3.4333,145.63,145.59,3.4339]
[1726857967224,19.923,145.64,145.6,3.4338]
[1726857968621,16.49,145.64,145.59,3.4339]
[1726857968822,1.3767,145.63,145.55,16.49]
[1726857969227,3.4335,145.62,145.58,3.4342]
[1726857970231,3.4335,145.62,145.59,3.4341]
[1726857971420,3.4335,145.62,145.58,3.4342]
[1726857971825,16.49,145.62,145.53,16.49]
[1726857972027,16.49,145.6,145.51,157.27407995]
[1726857972430,3.4343,145.59,145.51,19.89407995]
[1726857973025,3.4344,145.58,145.51,16.49]
[1726857973223,3.4344,145.58,145.51,19.90794325]
[1726857973627,3.4344,145.58,145.54,3.4351]
[1726857973932,3.4342,145.59,145.51,19.90794325]
[1726857974324,16.49,145.6,145.51,19.90794325]
[1726857974325,16.49,145.6,145.56,3.4346]
[1726857974521,19.924,145.6,145.51,19.90794325]
[1726857974727,21.32788977,145.62,145.57,3.4344]
[1726857974927,2.6732,145.63,145.55,16.49]
[1726857975221,2.6732,145.63,145.57,16.49]
[1726857975422,2.6732,145.63,145.6,3.4338]
[1726857975634,2.6732,145.63,145.57,16.49]
[1726857976536,17.8864,145.66,145.57,16.49]
[1726857976922,4.829,145.66,145.59,16.49]
[1726857977123,4.829,145.66,145.62,3.4332]
[1726857977342,17.8864,145.66,145.57,16.49]
[1726857977544,16.49,145.63,145.57,3.4344]
[1726857977750,16.49,145.63,145.54,3.44610723]
[1726857977951,3.4337,145.61,145.54,3.44610723]
[1726857978350,3.4337,145.61,145.53,16.49]
[1726857978845,1.3964,145.66,145.59,16.49]
[1726857979045,1.3964,145.66,145.63,3.433]
[1726857979237,16.49,145.67,145.59,16.49]
[1726857979440,3.4324,145.67,145.6,16.49]
[1726857980145,3.4324,145.66,145.6,16.49]
[1726857980947,19.0973,145.69,145.58,16.49]
[1726857980948,16.49,145.67,145.58,16.49]
[1726857981446,3.433,145.64,145.61,3.4334]
[1726857982445,3.4332,145.63,145.57,16.49]
[1726857982851,16.49,145.67,145.59,16.49]
[1726857983054,3.4328,145.65,145.59,16.49]
[1726857983245,16.49,145.67,145.63,3.433]
[1726857983954,19.0973,145.69,145.64,3.4328]
[1726857984143,19.0973,145.69,145.6,16.49]
[1726857984350,19.0973,145.69,145.56,4.65956836]
[1726857984351,2.6073,145.69,145.62,16.49]
[1726857985146,6.0392,145.69,145.62,16.49]
[1726857985352,2.6073,145.69,145.62,16.49]
[1726857985748,3.4319,145.69,145.65,3.4325]
[1726857985954,16.49,145.75,145.66,16.49]
[1726857986755,19.90229176,145.75,145.66,16.49]
[1726857986949,3.4312,145.72,145.69,3.4317]
[1726857987254,19.90229176,145.75,145.66,16.49]
[1726857987453,3.4309,145.73,145.69,3.4316]
[1726857988057,3.4311,145.72,145.69,3.4316]
[1726857990064,4.089,145.76,145.68,16.49]
[1726857990657,3.4305,145.75,145.72,3.431]
[1726857991160,3.4305,145.75,145.68,16.49]
[1726857991161,4.089,145.76,145.68,16.49]
[1726857992062,3.4306,145.74,145.71,3.431]
[1726857993260,3.4304,145.75,145.72,3.431]
[1726857994257,4.813,145.76,145.73,3.4307]
[1726857994457,16.49,145.79,145.7,16.49]
[1726857994659,3.4297,145.78,145.75,3.4301]
[1726857995052,3.9941,145.8,145.72,16.49]
[1726857996066,3.4298,145.78,145.72,16.49]
[1726857996265,3.9941,145.8,145.72,16.49]
[1726857996665,3.4296,145.78,145.75,3.4302]
[1726857997771,3.4296,145.78,145.7,16.49]
[1726857997772,16.49,145.78,145.7,16.49]
[1726857999273,16.49,145.78,145.73,3.4306]
[1726857999274,3.4302,145.76,145.73,3.4306]
[1726857999568,3.4302,145.76,145.65,138.4676]
[1726857999569,3.9941,145.8,145.72,16.49]
[1726857999872,3.4297,145.78,145.75,3.4302]
[1726858000269,3.9941,145.8,145.72,19.9209]
[1726858000567,16.49,145.79,145.7,16.49]
[1726858000976,3.4302,145.76,145.73,3.4307]
[1726858001270,16.49,145.79,145.7,16.49]